fUSD/lending_fUSD_20250505
["ID","MTS","AMOUNT","RATE_DAILY","PERIOD"]
[360005295,1746477042100,-526.08533867,0.00019999,2]
[360005297,1746477042109,-450.0,0.00019999,2]
[360005299,1746477042118,-450.0,0.00019999,2]
[360005301,1746477042128,-450.0,0.00019999,2]
[360005303,1746477042137,-450.0,0.00019999,2]
[360005306,1746477042146,-450.0,0.00019999,2]
[360005307,1746477042155,-196.07,0.00019999,2]
[360005311,1746477042166,-450.0,0.00019999,2]
[360005313,1746477042176,-450.0,0.00019999,2]
[360005317,1746477042185,-450.0,0.00019999,2]
[360005319,1746477042195,-450.0,0.00019999,2]
[360005320,1746477042204,-450.0,0.00019999,2]
[360005322,1746477042214,-289.47,0.00019999,2]
[360005325,1746477042224,-450.0,0.00019999,2]
[360005327,1746477042233,-555.19635294,0.00019999,2]
[360005330,1746477042242,-450.0,0.00019999,2]
[360005333,1746477042252,-450.0,0.00019999,2]
[360005335,1746477042261,-450.0,0.00019999,2]
[360005337,1746477042270,-601.31,0.00019999,2]
[360005339,1746477042279,-450.0,0.00019999,2]
[360005341,1746477042288,-601.31,0.00019999,2]
[360005342,1746477042298,-450.0,0.00019999,2]
[360005345,1746477042307,-450.0,0.00019999,2]
[360005346,1746477042316,-601.31,0.00019999,2]
[360005348,1746477042326,-450.0,0.00019999,2]
[360005350,1746477042337,-601.31,0.00019999,2]
[360005352,1746477042346,-450.0,0.00019999,2]
[360005354,1746477042355,-601.31,0.00019999,2]
[360005356,1746477042364,-450.0,0.00019999,2]
[360005358,1746477042374,-601.31,0.00019999,2]
[360005360,1746477042383,-450.0,0.00019999,2]
[360005362,1746477042392,-601.31,0.00019999,2]
[360005364,1746477042401,-450.0,0.00019999,2]
[360005366,1746477042410,-601.31,0.00019999,2]
[360005368,1746477042420,-450.0,0.00019999,2]
[360005370,1746477042429,-450.0,0.00019999,2]
[360005372,1746477042439,-450.0,0.00019999,2]
[360005373,1746477042448,-450.0,0.00019999,2]
[360005374,1746477042458,-450.0,0.00019999,2]
[360005375,1746477042467,-450.0,0.00019999,2]
[360005376,1746477042476,-361.68,0.00019999,2]
[360005377,1746477042485,-601.31,0.00019999,2]
[360005378,1746477042495,-532.36,0.00019999,2]
[360005379,1746477042509,-450.0,0.00019999,2]
[360005380,1746477042519,-601.31,0.00019999,2]
[360005381,1746477042529,-450.0,0.00019999,2]
[360005382,1746477042538,-601.31,0.00019999,2]
[360005383,1746477042547,-450.0,0.00019999,2]
[360005384,1746477042557,-601.31,0.00019999,2]
[360005386,1746477042567,-450.0,0.00019999,2]
[360005388,1746477042576,-601.31,0.00019999,2]
[360005390,1746477042586,-601.31,0.00019999,2]
[360005392,1746477042596,-450.0,0.00019999,2]
[360005394,1746477042605,-601.31,0.00019999,2]
[360005396,1746477042615,-450.0,0.00019999,2]
[360005398,1746477042625,-601.31,0.00019999,2]
[360005400,1746477042634,-450.0,0.00019999,2]
[360005403,1746477042644,-450.0,0.00019999,2]
[360005405,1746477042654,-601.31,0.00019999,2]
[360005407,1746477042664,-450.0,0.00019999,2]
[360005408,1746477042673,-466.82890974,0.00019999,2]
[360005410,1746477042682,-601.31,0.00019999,2]
[360005413,1746477042692,-450.0,0.00019999,2]
[360005415,1746477042701,-601.31,0.00019999,2]
[360005417,1746477042711,-450.0,0.00019999,2]
[360005419,1746477042721,-601.31,0.00019999,2]
[360005421,1746477042731,-450.0,0.00019999,2]
[360005423,1746477042740,-601.31,0.00019999,2]
[360005425,1746477042749,-450.0,0.00019999,2]
[360005427,1746477042759,-601.31,0.00019999,2]
[360005429,1746477042768,-585.6750063,0.00019999,2]
[360005431,1746477042777,-601.54,0.00019999,2]
[360005433,1746477042786,-267.0,0.00019999,2]
[360005435,1746477042796,-541.6718532,0.00019999,2]
[360005436,1746477042805,-450.0,0.00019999,2]
[360005439,1746477042814,-450.0,0.00019999,2]
[360005441,1746477042823,-450.0,0.00019999,2]
[360005442,1746477042833,-450.0,0.00019999,2]
[360005444,1746477042842,-450.0,0.00019999,2]
[360005446,1746477042851,-450.0,0.00019999,2]
[360005448,1746477042861,-450.0,0.00019999,2]
[360005450,1746477042870,-450.0,0.00019999,2]
[360005452,1746477042880,-450.0,0.00019999,2]
[360005455,1746477042890,-598.69,0.00019999,2]
[360005457,1746477042900,-150.0,0.00019999,2]
[360005459,1746477042909,-450.0,0.00019999,2]
[360005461,1746477042920,-450.0,0.00019999,2]
[360005464,1746477042929,-271.14584431,0.00019999,2]
[360005467,1746477042938,-450.0,0.00019999,2]
[360005470,1746477042948,-450.0,0.00019999,2]
[360005472,1746477042957,-450.0,0.00019999,2]
[360005473,1746477042966,-360.54,0.00019999,2]
[360005475,1746477042976,-450.0,0.00019999,2]
[360005477,1746477042985,-450.0,0.00019999,2]
[360005480,1746477042995,-450.0,0.00019999,2]
[360005482,1746477043005,-539.11,0.00019999,2]
[360005484,1746477043013,-450.0,0.00019999,2]
[360005486,1746477043022,-3520.31,0.00019999,2]
[360005488,1746477043032,-3520.31,0.00019999,2]
[360005489,1746477043041,-450.0,0.00019999,2]
[360005491,1746477043050,-3520.31,0.00019999,2]
[360005493,1746477043059,-3520.31,0.00019999,2]
[360005495,1746477043069,-3520.31,0.00019999,2]
[360005497,1746477043078,-3520.31,0.00019999,2]
[360005499,1746477043088,-3520.31,0.00019999,2]
[360005501,1746477043097,-3520.31,0.00019999,2]
[360005503,1746477043107,-3520.31,0.00019999,2]
[360005505,1746477043116,-625.0,0.0002,2]
[360005507,1746477043125,-37636.88448524,0.0002,2]
[360005509,1746477043134,-2000.0,0.0002,4]
[360005511,1746477043143,-2000.0,0.0002,4]
[360005513,1746477043152,-2000.0,0.0002,4]
[360005515,1746477043161,-2000.0,0.0002,4]
[360005517,1746477043171,-2000.0,0.0002,4]
[360005519,1746477043180,-2000.0,0.0002,4]
[360005522,1746477043190,-153366.2862403,0.0002,2]
[360005524,1746477043199,-1622790.00685848,0.0002,2]
[360005526,1746477043217,-100497.93704818,0.0002,2]
[360005528,1746477043227,-142690.82926664,0.0002,2]
[360005531,1746477043238,-3319.6,0.0002,2]
[360005533,1746477043249,-334.2610851,0.0002,2]
[360005544,1746477043349,-3520.31,0.00019999,2]
[360005546,1746477043358,-15704.93767107,0.0002,2]
[360005577,1746477043672,-450.0,0.00019998,2]
[360005579,1746477043681,-140642.47341382,0.0002,2]
[360005583,1746477043722,-21136.19751154,0.0002,2]
[360005585,1746477043735,-1924.31150499,0.0002,2]
[360005586,1746477043746,-636.0352362,0.0002,2]
[360005603,1746477043951,-268.61,0.00019899,2]
[360005605,1746477043977,-917.08786109,0.00019899,2]
[360005607,1746477043986,-450.0,0.00019998,2]
[360005609,1746477043996,-470.0,0.00019998,2]
[360005611,1746477044005,-450.0,0.00019998,2]
[360005612,1746477044014,-450.0,0.00019998,2]
[360005614,1746477044024,-450.0,0.00019998,2]
[360005616,1746477044034,-450.0,0.00019998,2]
[360005618,1746477044043,-3520.31,0.00019999,2]
[360005631,1746477044189,-450.0,0.00019999,2]
[360005632,1746477044198,-3520.31,0.00019999,2]
[360005634,1746477044208,-450.0,0.00019999,2]
[360005636,1746477044218,-3520.31,0.00019999,2]
[360005638,1746477044227,-450.0,0.00019999,2]
[360005640,1746477044236,-3520.31,0.00019999,2]
[360005641,1746477044245,-3520.31,0.00019999,2]
[360005643,1746477044255,-450.0,0.00019999,2]
[360005645,1746477044264,-3520.31,0.00019999,2]
[360005647,1746477044274,-450.0,0.00019999,2]
[360005648,1746477044283,-3520.31,0.00019999,2]
[360005650,1746477044293,-450.0,0.00019999,2]
[360005652,1746477044302,-450.0,0.00019999,2]
[360005654,1746477044311,-3520.31,0.00019999,2]
[360005656,1746477044321,-450.0,0.00019999,2]
[360005657,1746477044330,-3520.31,0.00019999,2]
[360005659,1746477044340,-450.0,0.00019999,2]
[360005661,1746477044349,-152981.24143716,0.0002,2]
[360005663,1746477044366,-3520.31,0.00019999,2]
[360005665,1746477044376,-10830.69,0.0002,2]
[360005667,1746477044387,-374.34635349,0.0002,2]
[360005670,1746477044408,-478.76350619,0.00019998,2]
[360005671,1746477044417,-259.28649381,0.00019999,2]
[360005743,1746477045458,-450.0,0.00019998,2]
[360005745,1746477045468,-450.0,0.00019998,2]
[360005747,1746477045478,-401.71363022,0.00019998,2]
[360005749,1746477045488,-450.0,0.00019998,2]
[360005751,1746477045498,-190.71350619,0.00019999,2]
[360005753,1746477045510,-450.0,0.00019999,2]
[360005755,1746477045520,-728.7576279,0.00019999,2]
[360005758,1746477045537,-2791.5523721,0.00019999,2]
[360005760,1746477045547,-175.13294975,0.00019999,2]
[360005762,1746477045556,-450.0,0.00019999,2]
[360005764,1746477045566,-3520.31,0.00019999,2]
[360005766,1746477045576,-3520.37000004,0.00019999,2]
[360005768,1746477045588,-450.0,0.00019999,2]
[360005770,1746477045597,-450.0,0.00019999,2]
[360005772,1746477045608,-450.0,0.00019999,2]
[360005774,1746477045617,-450.0,0.00019999,2]
[360005776,1746477045627,-450.0,0.00019999,2]
[360005778,1746477045636,-450.0,0.00019999,2]
[360005780,1746477045645,-450.0,0.00019999,2]
[360005782,1746477045655,-381.4329168,0.00019999,2]
[360005784,1746477045666,-450.0,0.00019999,2]
[360005785,1746477045676,-450.0,0.00019999,2]
[360005787,1746477045686,-47654.28444816,0.0002,2]
[360005791,1746477045707,-450.0,0.00019999,2]
[360005793,1746477045716,-33040.21234996,0.0002,2]
[360005796,1746477045740,-500.0,0.0002,2]
[360008437,1746477095935,177.045514,0.00018796,2]
[360008439,1746477286389,156.01,0.00018938,2]
[360008449,1746477492978,633.46,0.00017098,2]
[360008450,1746477493179,633.46,0.00019362,2]
[360008453,1746477564748,151.38574547,0.00030136,120]
[360008455,1746477657308,-272.20199617,0.000197,2]
[360008456,1746477657330,-200.0,0.000197,2]
[360008459,1746477771742,173.77,0.00019178,2]
[360008460,1746477918041,150.0,0.00017975,2]
[360008461,1746477953005,1000.0,0.00018859,2]
[360008585,1746478231704,-226.4288,0.00019703,2]
[360008586,1746478231714,-200.0,0.00019731,2]
[360008587,1746478231725,-250.0,0.00019731,2]
[360008588,1746478231734,-200.0,0.00019731,2]
[360008589,1746478231744,-173.5712,0.00019732,2]
[360008590,1746478231755,-1444.1693,0.00019732,2]
[360008591,1746478231765,-166.78,0.0001974,2]
[360008592,1746478231774,-1200.0,0.00019742,2]
[360008593,1746478231784,-300.0,0.00019742,2]
[360008594,1746478231797,-1367.70507438,0.00019743,2]
[360008595,1746478231814,-1448.88352562,0.00019743,2]
[360008596,1746478231824,-129.15756534,0.00019743,2]
[360008597,1746478231835,-739.489561,0.00019743,2]
[360008598,1746478231847,-451.26767366,0.00019743,2]
[360008599,1746478231857,-11893.518,0.00019743,2]
[360008600,1746478231868,-644.27098685,0.0001975,2]
[360008601,1746478231878,-7875.09543714,0.00019755,2]
[360008602,1746478231889,-316.54029767,0.00019759,2]
[360008604,1746478231898,-500.0,0.0001976,2]
[360008606,1746478231907,-6659.98389871,0.0001976,2]
[360008608,1746478231919,-40285.49848116,0.0001976,2]
[360008610,1746478231930,-7875.0954371,0.00019771,2]
[360008612,1746478231939,-207.4,0.00019787,2]
[360008614,1746478231949,-7875.0954371,0.00019787,2]
[360008616,1746478231962,-4641.7619,0.00019788,2]
[360008618,1746478231971,-170.20394253,0.00019798,2]
[360008620,1746478231980,-4653.1575641,0.00019798,2]
[360008621,1746478231990,-172.54396478,0.00019799,2]
[360008622,1746478231999,-152.10659,0.000198,23]
[360008623,1746478232008,-200.0,0.000198,2]
[360008624,1746478232017,-7875.0954371,0.00019803,2]
[360008625,1746478232027,-4653.15756408,0.00019809,2]
[360008626,1746478232036,-172.54396475,0.00019819,2]
[360008627,1746478232046,-7875.0954371,0.00019819,2]
[360008628,1746478232057,-4653.15756408,0.00019821,2]
[360008629,1746478232066,-151.0,0.00019831,2]
[360008630,1746478232075,-151.0,0.00019831,2]
[360008631,1746478232085,-668.65185757,0.00019831,2]
[360008633,1746478232095,-686.7579721,0.00019831,2]
[360008635,1746478232104,-4653.15756408,0.00019832,2]
[360008637,1746478232113,-7875.0954371,0.00019836,2]
[360008639,1746478232123,-172.54396475,0.00019839,2]
[360008641,1746478232132,-215.54888816,0.0001984,2]
[360008644,1746478232153,-1784.45111184,0.0001984,2]
[360008646,1746478232162,-4215.54888816,0.00019843,2]
[360008649,1746478237582,-500.0,0.00019786,2]
[360008650,1746478237592,-15.55170183,0.00019786,2]
[360008651,1746478237743,-500.0,0.00019786,2]
[360008652,1746478237799,-121.86271064,0.00019786,2]
[360008653,1746478237809,-500.0,0.00019786,2]
[360008654,1746478237819,-303.0345973,0.00019786,2]
[360008655,1746478237828,-436.86609465,0.00019786,2]
[360008656,1746478237838,-420.28059741,0.00019786,2]
[360008657,1746478237850,-306.53990915,0.00019786,2]
[360008658,1746478237859,-333.00063566,0.00019786,2]
[360008659,1746478237871,-302.3779227,0.00019786,2]
[360008660,1746478237881,-500.0,0.00019786,2]
[360008661,1746478237891,-500.0,0.00019786,2]
[360008662,1746478237901,-726.82050656,0.00019786,2]
[360008663,1746478237911,-303.18787645,0.00019786,2]
[360008664,1746478237923,-21.81924256,0.00019786,2]
[360008665,1746478237932,-500.0,0.00019786,2]
[360008666,1746478237941,-726.82050656,0.00019786,2]
[360008667,1746478237951,-500.0,0.00019786,2]
[360008668,1746478237963,-256.19397907,0.00019786,2]
[360008828,1746478239823,-243.80602093,0.00019786,2]
[360008830,1746478239833,-726.82050656,0.00019786,2]
[360008832,1746478239843,-726.82050656,0.00019786,2]
[360008834,1746478239852,-500.0,0.00019786,2]
[360008836,1746478239861,-726.82050656,0.00019786,2]
[360008838,1746478239871,-500.0,0.00019786,2]
[360008840,1746478239882,-726.82050656,0.00019786,2]
[360008842,1746478239891,-500.0,0.00019786,2]
[360008844,1746478239900,-726.82050656,0.00019786,2]
[360008846,1746478239909,-500.0,0.00019786,2]
[360008847,1746478239919,-726.82050656,0.00019786,2]
[360008850,1746478239929,-726.82050656,0.00019786,2]
[360008852,1746478239938,-726.82050656,0.00019786,2]
[360008854,1746478239948,-726.82050656,0.00019786,2]
[360008855,1746478239961,-726.82050656,0.00019786,2]
[360008857,1746478239971,-726.82050656,0.00019786,2]
[360008859,1746478239980,-726.82050656,0.00019786,2]
[360008861,1746478239990,-726.82050656,0.00019786,2]
[360008863,1746478240000,-726.82050656,0.00019786,2]
[360008865,1746478240009,-726.82050656,0.00019786,2]
[360008867,1746478240019,-726.82050656,0.00019786,2]
[360008869,1746478240029,-726.82050656,0.00019786,2]
[360008871,1746478240040,-726.82050656,0.00019786,2]
[360008873,1746478240050,-726.82050656,0.00019786,2]
[360008875,1746478240060,-726.82050656,0.00019786,2]
[360008877,1746478240070,-726.82050656,0.00019786,2]
[360008879,1746478240080,-726.82050656,0.00019786,2]
[360008881,1746478240090,-726.82050656,0.00019786,2]
[360008883,1746478240099,-726.82050656,0.00019786,2]
[360008885,1746478240108,-726.82050656,0.00019786,2]
[360008887,1746478240118,-726.82050656,0.00019786,2]
[360008889,1746478240128,-726.82050656,0.00019786,2]
[360008891,1746478240137,-726.82050656,0.00019786,2]
[360008893,1746478240147,-726.82050656,0.00019786,2]
[360008895,1746478240156,-726.82050656,0.00019786,2]
[360008897,1746478240165,-726.82050656,0.00019786,2]
[360008899,1746478240175,-726.82050656,0.00019786,2]
[360008901,1746478240185,-726.82050656,0.00019786,2]
[360008903,1746478240195,-726.82050656,0.00019786,2]
[360008905,1746478240204,-726.82050656,0.00019786,2]
[360008907,1746478240213,-726.82050656,0.00019786,2]
[360008909,1746478240222,-726.82050656,0.00019786,2]
[360008911,1746478240232,-726.82050656,0.00019786,2]
[360008913,1746478240241,-437.60867592,0.00019843,2]
[360008915,1746478240250,-170.20394252,0.00019849,2]
[360008917,1746478240259,-7875.0954371,0.00019852,2]
[360008919,1746478240269,-169.49996,0.00019852,2]
[360008921,1746478240278,-626.168075,0.00019852,2]
[360008923,1746478240287,-555.798753,0.00019852,2]
[360008925,1746478240296,-396.777921,0.00019852,2]
[360008927,1746478240306,-4653.15756408,0.00019855,2]
[360008929,1746478240316,-172.54396475,0.0001986,2]
[360008931,1746478240325,-3935.3145,0.00019863,2]
[360008933,1746478240335,-4653.15756408,0.00019866,2]
[360008935,1746478240344,-7875.0954371,0.00019868,2]
[360008937,1746478240353,-323.34188315,0.00019873,2]
[360008939,1746478240363,-501.05573658,0.00019873,2]
[360008940,1746478240372,-500.0,0.00019873,2]
[360008942,1746478240382,-165.04489109,0.00019873,2]
[360008944,1746478240391,-500.0,0.00019873,2]
[360008946,1746478240401,-500.0,0.00019873,2]
[360008948,1746478240410,-500.0,0.00019873,2]
[360008950,1746478240420,-500.0,0.00019873,2]
[360008952,1746478240429,-500.0,0.00019873,2]
[360008954,1746478240439,-500.0,0.00019873,2]
[360008956,1746478240449,-500.0,0.00019873,2]
[360008958,1746478240458,-500.0,0.00019873,2]
[360008960,1746478240468,-500.0,0.00019873,2]
[360008962,1746478240477,-2314.9,0.00019874,2]
[360008964,1746478240487,-4653.15756408,0.00019877,2]
[360008966,1746478240496,-172.54396475,0.0001988,2]
[360008968,1746478240505,-190.5193713,0.00019883,2]
[360008970,1746478240514,-156.34320295,0.00019883,2]
[360008972,1746478240523,-500.0,0.00019883,2]
[360008974,1746478240533,-503.00305668,0.00019883,2]
[360008976,1746478240542,-451.57967505,0.00019883,2]
[360008978,1746478240551,-571.76150041,0.00019883,2]
[360008980,1746478240560,-7875.0954371,0.00019884,2]
[360008982,1746478240569,-271.05396287,0.0001989,2]
[360008984,1746478240578,-271.05396287,0.00019894,2]
[360008986,1746478240588,-450.0,0.00019896,2]
[360008988,1746478240597,-450.0,0.00019896,2]
[360008990,1746478240606,-440.95796157,0.00019896,2]
[360008992,1746478240615,-450.0,0.00019896,2]
[360008994,1746478240625,-450.0,0.00019896,2]
[360008996,1746478240635,-450.0,0.00019896,2]
[360008998,1746478240643,-450.0,0.00019896,2]
[360009000,1746478240653,-450.0,0.00019896,2]
[360009002,1746478240662,-450.0,0.00019896,2]
[360009004,1746478240672,-160.82978661,0.00019896,2]
[360009006,1746478240681,-450.0,0.00019896,2]
[360009008,1746478240690,-450.0,0.00019896,2]
[360009010,1746478240700,-450.0,0.00019896,2]
[360009011,1746478240709,-490.0,0.00019897,2]
[360009013,1746478240718,-450.0,0.00019897,2]
[360009015,1746478240727,-508.92000483,0.00019897,2]
[360009017,1746478240737,-450.0,0.00019897,2]
[360009019,1746478240746,-450.0,0.00019897,2]
[360009022,1746478240756,-450.0,0.00019897,2]
[360009024,1746478240765,-450.0,0.00019897,2]
[360009025,1746478240775,-450.0,0.00019897,2]
[360009027,1746478240784,-450.0,0.00019897,2]
[360009029,1746478240793,-450.0,0.00019897,2]
[360009031,1746478240802,-450.0,0.00019897,2]
[360009033,1746478240811,-450.0,0.00019897,2]
[360009035,1746478240820,-450.0,0.00019897,2]
[360009037,1746478240830,-502.41915561,0.00019897,2]
[360009039,1746478240839,-450.0,0.00019897,2]
[360009041,1746478240848,-450.0,0.00019897,2]
[360009043,1746478240858,-450.0,0.00019897,2]
[360009045,1746478240867,-450.0,0.00019897,2]
[360009047,1746478240876,-450.0,0.00019897,2]
[360009049,1746478240885,-450.0,0.00019897,2]
[360009051,1746478240894,-450.0,0.00019897,2]
[360009053,1746478240903,-450.0,0.00019897,2]
[360009055,1746478240913,-406.15095618,0.00019897,2]
[360009057,1746478240922,-478.66436726,0.00019897,2]
[360009059,1746478240931,-450.0,0.00019897,2]
[360009061,1746478240940,-250.0,0.00019897,2]
[360009063,1746478240950,-450.0,0.00019897,2]
[360009065,1746478240963,-450.0,0.00019897,2]
[360009067,1746478240972,-500.0,0.00019897,2]
[360009069,1746478240982,-450.0,0.00019897,2]
[360009071,1746478240992,-450.0,0.00019897,2]
[360009073,1746478241003,-450.0,0.00019897,2]
[360009075,1746478241012,-453.10421728,0.00019897,2]
[360009077,1746478241022,-450.0,0.00019897,2]
[360009079,1746478241032,-450.0,0.00019897,2]
[360009081,1746478241041,-450.0,0.00019897,2]
[360009083,1746478241051,-450.0,0.00019897,2]
[360009085,1746478241060,-496.15403073,0.00019897,2]
[360009087,1746478241069,-450.0,0.00019897,2]
[360009089,1746478241078,-500.0,0.00019897,2]
[360009090,1746478241087,-514.71549102,0.00019897,2]
[360009092,1746478241097,-450.0,0.00019897,2]
[360009095,1746478241106,-450.0,0.00019897,2]
[360009097,1746478241116,-450.0,0.00019897,2]
[360009098,1746478241125,-450.0,0.00019897,2]
[360009100,1746478241135,-186.60237273,0.00019897,2]
[360009102,1746478241144,-450.0,0.00019897,2]
[360009104,1746478241153,-450.0,0.00019897,2]
[360009106,1746478241162,-450.0,0.00019897,2]
[360009108,1746478241171,-450.0,0.00019897,2]
[360009110,1746478241180,-450.0,0.00019897,2]
[360009112,1746478241190,-485.97858072,0.00019897,2]
[360009114,1746478241199,-492.82152274,0.00019897,2]
[360009116,1746478241208,-450.0,0.00019897,2]
[360009118,1746478241218,-450.0,0.00019897,2]
[360009120,1746478241227,-450.0,0.00019897,2]
[360009122,1746478241236,-453.66161581,0.00019897,2]
[360009124,1746478241245,-450.0,0.00019897,2]
[360009126,1746478241254,-450.0,0.00019897,2]
[360009128,1746478241263,-480.60723006,0.00019897,2]
[360009130,1746478241273,-450.0,0.00019897,2]
[360009132,1746478241283,-450.0,0.00019897,2]
[360009134,1746478241292,-483.29251598,0.00019897,2]
[360009136,1746478241301,-450.0,0.00019897,2]
[360009138,1746478241310,-450.0,0.00019897,2]
[360009140,1746478241319,-450.0,0.00019897,2]
[360009142,1746478241328,-450.0,0.00019897,2]
[360009144,1746478241337,-294.53970089,0.00019897,2]
[360009146,1746478241346,-504.80928869,0.00019897,2]
[360009148,1746478241355,-450.0,0.00019897,2]
[360009150,1746478241364,-450.0,0.00019897,2]
[360009152,1746478241373,-591.58727231,0.00019897,2]
[360009154,1746478241383,-450.0,0.00019897,2]
[360009156,1746478241392,-493.26216291,0.00019897,2]
[360009158,1746478241401,-552.33778262,0.00019897,2]
[360009160,1746478241410,-504.83469372,0.00019897,2]
[360009162,1746478241420,-503.98678499,0.00019897,2]
[360009164,1746478241429,-450.0,0.00019897,2]
[360009166,1746478241439,-450.0,0.00019897,2]
[360009168,1746478241449,-522.65492399,0.00019897,2]
[360009170,1746478241459,-450.0,0.00019897,2]
[360009172,1746478241468,-450.0,0.00019897,2]
[360009174,1746478241478,-450.0,0.00019897,2]
[360009176,1746478241487,-510.75434921,0.00019897,2]
[360009178,1746478241497,-450.0,0.00019897,2]
[360009180,1746478241506,-512.80715453,0.00019897,2]
[360009182,1746478241515,-484.18438126,0.00019897,2]
[360009199,1746478241663,-450.0,0.00019897,2]
[360009201,1746478241674,-450.0,0.00019897,2]
[360009203,1746478241683,-450.0,0.00019897,2]
[360009205,1746478241693,-450.0,0.00019897,2]
[360009207,1746478241702,-450.0,0.00019897,2]
[360009209,1746478241711,-450.0,0.00019897,2]
[360009211,1746478241720,-450.0,0.00019897,2]
[360009213,1746478241730,-522.66143353,0.00019897,2]
[360009215,1746478241739,-450.0,0.00019897,2]
[360009217,1746478241748,-470.9220469,0.00019897,2]
[360009219,1746478241757,-450.0,0.00019897,2]
[360009221,1746478241766,-560.34819896,0.00019897,2]
[360009223,1746478241775,-450.0,0.00019897,2]
[360009225,1746478241785,-450.0,0.00019897,2]
[360009227,1746478241795,-450.0,0.00019897,2]
[360009229,1746478241805,-450.0,0.00019897,2]
[360009231,1746478241815,-450.0,0.00019897,2]
[360009233,1746478241824,-450.0,0.00019897,2]
[360009235,1746478241833,-450.0,0.00019897,2]
[360009237,1746478241842,-450.0,0.00019897,2]
[360009239,1746478241851,-450.0,0.00019897,2]
[360009241,1746478241860,-561.44755332,0.00019897,2]
[360009242,1746478241869,-450.0,0.00019897,2]
[360009244,1746478241879,-450.0,0.00019897,2]
[360009246,1746478241889,-450.0,0.00019897,2]
[360009248,1746478241899,-450.0,0.00019897,2]
[360009250,1746478241908,-269.86174605,0.00019897,2]
[360009252,1746478241918,-450.0,0.00019897,2]
[360009254,1746478241927,-529.43159874,0.00019897,2]
[360009256,1746478241936,-450.0,0.00019897,2]
[360009258,1746478241946,-450.0,0.00019897,2]
[360009260,1746478241957,-450.0,0.00019897,2]
[360009262,1746478241967,-450.0,0.00019897,2]
[360009264,1746478241976,-500.0,0.00019897,2]
[360009266,1746478241986,-450.0,0.00019897,2]
[360009268,1746478241995,-450.0,0.00019897,2]
[360009270,1746478242005,-450.0,0.00019897,2]
[360009272,1746478242014,-450.0,0.00019897,2]
[360009274,1746478242023,-480.88475178,0.00019897,2]
[360009276,1746478242033,-450.0,0.00019897,2]
[360009278,1746478242042,-502.27667983,0.00019897,2]
[360009280,1746478242052,-450.0,0.00019897,2]
[360009282,1746478242061,-450.0,0.00019897,2]
[360009284,1746478242071,-450.0,0.00019897,2]
[360009286,1746478242080,-480.68738564,0.00019897,2]
[360009288,1746478242089,-488.94965608,0.00019897,2]
[360009290,1746478242098,-450.0,0.00019897,2]
[360009292,1746478242108,-488.89309305,0.00019897,2]
[360009294,1746478242117,-500.0,0.00019897,2]
[360009296,1746478242126,-450.0,0.00019897,2]
[360009298,1746478242135,-450.0,0.00019897,2]
[360009300,1746478242144,-450.0,0.00019897,2]
[360009302,1746478242153,-450.0,0.00019897,2]
[360009304,1746478242163,-271.50088205,0.00019897,2]
[360009306,1746478242172,-450.0,0.00019897,2]
[360009308,1746478242181,-450.0,0.00019897,2]
[360009310,1746478242190,-450.0,0.00019897,2]
[360009312,1746478242200,-450.0,0.00019897,2]
[360009314,1746478242210,-450.0,0.00019897,2]